fUSD/lending_fUSD_20251027
["ID","MTS","AMOUNT","RATE_DAILY","PERIOD"]
[392493744,1761564417328,-193.79490688,0.00017151,2]
[392493745,1761564420806,-306.20509312,0.00017151,2]
[392493746,1761564422242,-174.05809045,0.00017151,2]
[392493747,1761564428142,-38.39190955,0.00017151,2]
[392493748,1761564428167,-712.45,0.00018054,2]
[392493749,1761564428190,-712.45,0.00018957,2]
[392493750,1761564428216,-20.46318764,0.0001925,2]
[392493751,1761564428237,-250.0,0.0001925,2]
[392493752,1761564428260,-195.0,0.0001925,2]
[392493753,1761564428284,-712.45,0.00019859,2]
[392493754,1761564428308,-712.45,0.00020762,2]
[392493755,1761564428329,-300.0,0.00020999,2]
[392493756,1761564428351,-5918.99405862,0.00021,2]
[392493757,1761564428373,-34.80027893,0.00021665,2]
[392493758,1761564437240,2096.83753734,0.0001305,2]
[392493759,1761564441104,-314.55434068,0.00021665,2]
[392493760,1761564446080,-363.09538039,0.00021665,2]
[392493761,1761564446103,-645.63782034,0.00022567,2]
[392493762,1761564451090,-66.81217966,0.00022567,2]
[392493763,1761564451113,-208.01981342,0.00022842,2]
[392493764,1761564462149,1150.31214129,0.0002,5]
[392493765,1761564468504,2189.39085887,0.00013,2]
[392493766,1761564473186,-160.98422241,0.00018,2]
[392493767,1761564475274,578110.50291632,0.00015,2]
[392493768,1761564475307,340588.78157837,0.00015,2]
[392493769,1761564476837,-333.52791349,0.00018,2]
[392493770,1761564479063,-387.00128608,0.00018,2]
[392493771,1761564480598,-284.91827008,0.00018,2]
[392493772,1761564485309,-175.8050188,0.00018,2]
[392493773,1761564487828,-334.40172603,0.00018,2]
[392493774,1761564489526,412.41624996,0.0001439,2]
[392493775,1761564494484,-182.58026006,0.00018,2]
[392493776,1761564497905,-334.26072118,0.00018,2]
[392493777,1761564500389,-202.24108287,0.00018,2]
[392493778,1761564502237,-239.39478756,0.00018,2]
[392493779,1761564502858,23179.35415333,0.00015,2]
[392493780,1761564518164,-398.57531363,0.00018,2]
[392493781,1761564520331,-305.36870832,0.00018,2]
[392493782,1761564520947,7830.0496995,0.0001,2]
[392493784,1761564522642,161.46733412,0.00012,2]
[392493785,1761564524962,-170.65775785,0.00018,2]
[392493786,1761564524984,-180.44420515,0.00018,2]
[392493788,1761564528212,-522.93480653,0.00018,2]
[392493789,1761564531886,-332.83347489,0.00018,2]
[392493790,1761564548095,-141.39615374,0.00018,2]
[392493791,1761564548120,-1334.27156816,0.00019,2]
[392493792,1761564548142,-3057.52390668,0.0002,2]
[392493793,1761564548164,-217.18148142,0.000215,2]
[392493794,1761564559097,-150.0,0.000198,2]
[392493795,1761564559118,-2734.63449633,0.000215,2]
[392493796,1761564559138,-250.0,0.00023123,2]
[392493797,1761564559160,-712.45,0.0002347,2]
[392493798,1761564559180,-150.16387319,0.00023568,2]
[392493799,1761564559202,-712.45,0.00024373,2]
[392493800,1761564559222,-500.0,0.00024932,2]
[392493801,1761564559241,-1195.91165371,0.00025,2]
[392493802,1761564559261,-712.45,0.00025275,2]
[392493803,1761564559283,-712.45,0.00026178,2]
[392493804,1761564559304,-218.57,0.00026986,120]
[392493805,1761564559325,-712.45,0.00027081,2]
[392493806,1761564559349,-150.0,0.00027773,2]
[392493807,1761564559369,-152.75,0.00027773,2]
[392493808,1761564559392,-712.45,0.00027983,2]
[392493809,1761564559411,-1200.0,0.00027999,2]
[392493810,1761564559431,-7327.88561996,0.00028,2]
[392493811,1761564559451,-712.45,0.00028886,2]
[392493812,1761564559474,-3931.04685,0.000296,2]
[392493813,1761564559494,-712.45,0.00029789,2]
[392493814,1761564559514,-1071.94596581,0.00029999,2]
[392493815,1761564559538,-500.0,0.00029999,2]
[392493816,1761564559560,-500.0,0.00029999,2]
[392493817,1761564559583,-466.24079397,0.00029999,2]
[392493818,1761564559604,-2899.12458703,0.0003,5]
[392493819,1761564564107,-8559.455632,0.0003,5]
[392493820,1761564573125,-32241.45641794,0.0003,5]
[392493821,1761564573146,-523.85810528,0.0003,2]
[392493822,1761564573166,-2666.50521697,0.0003,2]
[392493823,1761564573186,-3931.04686,0.000301,2]
[392493824,1761564573206,-162.28468988,0.00030139,2]
[392493825,1761564573227,-3931.04685,0.000306,2]
[392493826,1761564573248,-712.45,0.00030691,2]
[392493827,1761564573267,-35047.36506096,0.0003095,2]
[392493828,1761564573288,-3931.04686,0.000311,2]
[392493829,1761564573310,-712.45,0.00031594,2]
[392493830,1761564573331,-3931.04685,0.000316,2]
[392493831,1761564573351,-6474.58,0.00031757,2]
[392493832,1761564573372,-3931.04686,0.000321,2]
[392493833,1761564573395,-712.45,0.00032497,2]
[392493834,1761564573415,-13137.99499971,0.00033,2]
[392493835,1761564580785,252.13112862,0.000252,2]
[392493836,1761564607295,814.7013217,0.00029789,2]
[392493851,1761564631941,-334.26072118,0.00029899,60]
[392493852,1761564631951,-300.0,0.00029998,2]
[392493853,1761564631960,-1200.0,0.00029998,2]
[392493854,1761564631969,-500.0,0.00029999,2]
[392493855,1761564631979,-500.0,0.00029999,2]
[392493856,1761564631988,-500.0,0.00029999,2]
[392493857,1761564631997,-500.0,0.00029999,2]
[392493858,1761564632007,-500.0,0.00029999,2]
[392493859,1761564632017,-500.0,0.00029999,2]
[392493860,1761564632026,-201.13174689,0.00029999,2]
[392493861,1761564632035,-500.0,0.00029999,2]
[392493862,1761564632044,-500.0,0.00029999,2]
[392493863,1761564632053,-500.0,0.00029999,2]
[392493864,1761564632062,-500.0,0.00029999,2]
[392493865,1761564632071,-500.0,0.00029999,2]
[392493866,1761564632080,-500.0,0.00029999,2]
[392493867,1761564632091,-500.0,0.00029999,2]
[392493868,1761564632100,-173.0,0.00030068,120]
[392493869,1761564632109,-173.0,0.00031571,120]
[392493870,1761564632119,-537.0,0.00032468,3]
[392493871,1761564632128,-874.03677,0.00032835,2]
[392493872,1761564632138,-602.09887979,0.00033,2]
[392493873,1761564632147,-786.20937,0.00033,2]
[392493874,1761564632156,-173.0,0.0003315,120]
[392493875,1761564632167,-712.45,0.00033399,2]
[392493876,1761564632176,-150.0,0.0003346,4]
[392493877,1761564632185,-150.0,0.0003346,4]
[392493878,1761564632195,-150.0,0.0003346,4]
[392493879,1761564632205,-150.0,0.0003346,4]
[392493880,1761564632215,-150.0,0.0003346,4]
[392493881,1761564632224,-150.0,0.0003346,4]
[392493882,1761564632233,-150.0,0.0003346,4]
[392493883,1761564632243,-150.0,0.0003346,4]
[392493884,1761564632253,-814.7013217,0.00033685,2]
[392493885,1761564632263,-1803.0,0.000342,2]
[392493886,1761564632272,-712.45,0.00034302,2]
[392493887,1761564632281,-173.0,0.00034808,120]
[392493888,1761564632290,-786.20937,0.00035,2]
[392493889,1761564632299,-577.22184805,0.00035022,2]
[392493890,1761564632308,-370.23,0.0003508,2]
[392493892,1761564632322,-4563.7,0.00035411,2]
[392493894,1761564632330,-150.0,0.00035426,2]
[392493895,1761564632339,-1303.29997239,0.0003544,2]
[392493896,1761564632370,-661.2693431,0.0003544,2]
[392493922,1761564640137,-112.08146693,0.0003544,2]
[392493923,1761564640149,-324.6468001,0.0003544,2]
[392493924,1761564640161,-528.32704793,0.0003544,2]
[392493925,1761564640249,-2070.37536955,0.0003544,2]
[392493926,1761564640259,-443.98,0.00035568,30]
[392493927,1761564640268,-300.0,0.00035616,120]
[392493928,1761564640281,-151.0,0.0003588,2]
[392493929,1761564640290,-151.0,0.0003588,2]
[392493930,1761564640299,-151.0,0.0003588,2]
[392493931,1761564640308,-151.0,0.0003588,2]
[392493932,1761564640318,-151.0,0.0003588,2]
[392493933,1761564640327,-151.0,0.0003588,2]
[392493934,1761564640337,-151.0,0.0003588,2]
[392493935,1761564640346,-151.0,0.0003588,2]
[392493936,1761564640355,-151.0,0.0003588,2]
[392493937,1761564640365,-151.0,0.0003588,2]
[392493938,1761564640374,-151.0,0.0003588,2]
[392493939,1761564640384,-215.94631922,0.0003588,2]
[392493940,1761564640393,-195.4144361,0.0003588,2]
[392493941,1761564640403,-151.0,0.0003588,2]
[392493942,1761564640413,-151.0,0.0003588,2]
[392493943,1761564640422,-151.0,0.0003588,2]
[392493944,1761564640432,-151.0,0.0003588,2]
[392493945,1761564640442,-151.0,0.0003588,2]
[392493946,1761564640451,-151.0,0.0003588,2]
[392493947,1761564640460,-151.0,0.0003588,2]
[392493948,1761564640469,-151.0,0.0003588,2]
[392493949,1761564640479,-151.0,0.0003588,2]
[392493950,1761564640488,-151.0,0.0003588,2]
[392493951,1761564640497,-151.0,0.0003588,2]
[392493952,1761564640506,-500.0,0.00035901,15]
[392493953,1761564640517,-500.0,0.00035901,15]
[392493954,1761564640531,-407.48583788,0.00035901,15]
[392493955,1761564640540,-500.0,0.00035901,15]
[392493956,1761564640550,-413.59725516,0.00035901,15]
[392493957,1761564640559,-263.631,0.00035901,43]
[392493958,1761564640568,-22204.35,0.00035902,2]
[392493960,1761564640579,-2376.88378893,0.00035904,2]
[392493961,1761564640589,-18389.41486159,0.00036,2]
[392493962,1761564640600,-1852.42,0.00036029,2]
[392493963,1761564640610,-902.8804813,0.00036099,2]
[392493964,1761564640619,-500.0,0.00036104,2]
[392493965,1761564640628,-250.0,0.00036107,2]
[392493966,1761564640637,-11792.42,0.00036171,2]
[392493967,1761564640647,-158.1,0.00036204,2]
[392493968,1761564640656,-2789.0,0.00036219,120]
[392493969,1761564640665,-400.1672299,0.0003626,15]
[392493970,1761564640678,-500.0,0.0003626,15]
[392493971,1761564640687,-251.65770244,0.0003626,15]
[392493972,1761564640697,-197.65349172,0.0003626,15]
[392493973,1761564640706,-500.0,0.0003626,15]
[392493974,1761564640715,-9999.99,0.00036261,2]
[392493975,1761564640724,-999.99,0.00036261,2]
[392493976,1761564640734,-1785.77254224,0.00036261,2]
[392493977,1761564640777,-2807.61745776,0.00036261,2]
[392493978,1761564640787,-344.04,0.00036261,2]
[392493979,1761564640796,-150.99,0.00036261,2]
[392493980,1761564640805,-8161.27654224,0.00036261,2]
[392493981,1761564640816,-9053.02187624,0.00036261,2]
[392493982,1761564640837,-2857.40857935,0.00036261,2]
[392493983,1761564641391,-1.6e-07,0.00036261,2]
[392493984,1761564641402,-1874.05218,0.00036261,2]
[392493985,1761564641413,-2219.53082201,0.00036261,2]
[392493986,1761564641422,-1587.18,0.00036261,2]
[392493987,1761564641431,-4717.9,0.00036261,90]
[392493988,1761564641440,-9999.99,0.00036261,2]
[392493989,1761564641448,-9999.99,0.00036261,2]
[392493990,1761564641461,-499.99,0.00036261,2]
[392493991,1761564641470,-1717.02,0.00036261,2]
[392493992,1761564641480,-9999.99,0.00036261,2]
[392493993,1761564641490,-500.0,0.00036273,5]
[392493994,1761564641499,-504.14520199,0.00036273,5]
[392493995,1761564641509,-500.0,0.00036273,5]
[392493996,1761564641518,-500.0,0.00036273,5]
[392493997,1761564641532,-500.0,0.00036273,5]
[392493998,1761564641541,-500.0,0.00036273,3]
[392493999,1761564641550,-500.0,0.00036273,5]
[392494000,1761564641559,-500.0,0.00036273,5]
[392494001,1761564641569,-902.8804813,0.00036322,2]
[392494002,1761564641578,-620.0,0.00036406,2]
[392494003,1761564641588,-250.0,0.00036406,2]
[392494004,1761564641600,-313.13464191,0.00036406,2]
[392494005,1761564641609,-250.0,0.00036406,2]
[392494006,1761564641618,-500.0,0.00036406,2]
[392494007,1761564641627,-250.0,0.00036406,2]
[392494008,1761564641636,-500.0,0.00036406,2]
[392494009,1761564641645,-277.35679052,0.00036406,2]
[392494010,1761564641654,-250.0,0.00036406,2]
[392494011,1761564641663,-500.0,0.00036406,2]
[392494012,1761564641672,-220.0,0.00036406,2]
[392494013,1761564641681,-250.0,0.00036406,2]
[392494014,1761564641690,-500.0,0.00036406,2]
[392494015,1761564641699,-250.0,0.00036406,2]
[392494016,1761564641707,-220.0,0.00036406,2]
[392494017,1761564641716,-500.0,0.00036406,2]
[392494018,1761564641725,-250.0,0.00036406,2]
[392494019,1761564641734,-189.04685243,0.00036406,2]
[392494020,1761564641743,-500.0,0.00036406,2]
[392494021,1761564641752,-250.0,0.00036406,2]
[392494022,1761564641762,-500.0,0.00036406,2]
[392494023,1761564641771,-500.0,0.00036406,2]
[392494024,1761564641779,-250.0,0.00036406,2]
[392494025,1761564641789,-574.12855637,0.00036406,2]
[392494026,1761564641798,-500.0,0.00036406,2]
[392494027,1761564641807,-500.0,0.00036406,2]
[392494028,1761564641816,-250.0,0.00036406,2]
[392494029,1761564641827,-500.0,0.00036406,2]
[392494030,1761564641837,-250.0,0.00036406,2]
[392494031,1761564641847,-500.0,0.00036406,2]
[392494032,1761564641859,-500.0,0.00036406,2]
[392494033,1761564641869,-250.0,0.00036406,2]
[392494034,1761564641878,-500.0,0.00036406,2]
[392494035,1761564641887,-500.0,0.00036406,2]
[392494036,1761564641897,-250.0,0.00036406,2]
[392494037,1761564641906,-500.0,0.00036406,2]
[392494038,1761564641915,-500.0,0.00036406,2]
[392494039,1761564641924,-250.0,0.00036406,2]
[392494040,1761564641934,-500.0,0.00036406,2]
[392494041,1761564641943,-500.0,0.00036406,2]
[392494042,1761564641953,-500.0,0.00036406,2]
[392494043,1761564641962,-250.0,0.00036406,2]
[392494044,1761564641970,-500.0,0.00036406,2]
[392494045,1761564641980,-500.0,0.00036406,2]
[392494046,1761564641991,-250.0,0.00036406,2]
[392494047,1761564642001,-500.0,0.00036406,2]
[392494048,1761564642012,-500.0,0.00036406,2]
[392494049,1761564642022,-250.0,0.00036406,2]
[392494050,1761564642032,-500.0,0.00036406,2]
[392494051,1761564642042,-500.0,0.00036406,2]
[392494052,1761564642052,-250.0,0.00036406,2]
[392494053,1761564642062,-500.0,0.00036406,2]
[392494054,1761564642073,-500.0,0.00036406,2]
[392494055,1761564642082,-250.0,0.00036406,2]
[392494056,1761564642092,-500.0,0.00036406,2]
[392494057,1761564642102,-500.0,0.00036406,2]
[392494058,1761564642111,-250.0,0.00036406,2]
[392494059,1761564642121,-500.0,0.00036406,2]
[392494060,1761564642129,-250.0,0.00036406,2]
[392494061,1761564642138,-500.0,0.00036406,2]
[392494062,1761564642147,-250.0,0.00036406,2]
[392494063,1761564642156,-250.0,0.00036406,2]
[392494064,1761564642165,-500.0,0.00036406,2]
[392494065,1761564642174,-250.0,0.00036406,2]
[392494066,1761564642183,-250.0,0.00036406,2]
[392494067,1761564642191,-250.0,0.00036406,2]
[392494068,1761564642200,-250.0,0.00036406,2]
[392494069,1761564642209,-250.0,0.00036406,2]
[392494070,1761564642218,-250.0,0.00036406,2]
[392494071,1761564642227,-250.0,0.00036406,2]
[392494072,1761564642236,-250.0,0.00036406,2]
[392494073,1761564642247,-250.0,0.00036406,2]
[392494074,1761564642256,-250.0,0.00036406,2]
[392494075,1761564642264,-250.0,0.00036406,2]
[392494076,1761564642273,-250.0,0.00036406,2]
[392494077,1761564642282,-250.0,0.00036406,2]
[392494078,1761564642291,-250.0,0.00036406,2]
[392494079,1761564642300,-250.0,0.00036406,2]
[392494080,1761564642308,-250.0,0.00036406,2]
[392494081,1761564642319,-250.0,0.00036406,2]
[392494082,1761564642328,-250.0,0.00036406,2]
[392494083,1761564642336,-250.0,0.00036406,2]
[392494084,1761564642345,-250.0,0.00036406,2]
[392494085,1761564642354,-250.0,0.00036406,2]
[392494086,1761564642362,-250.0,0.00036406,2]
[392494087,1761564642371,-250.0,0.00036406,2]
[392494088,1761564642380,-250.0,0.00036406,2]
[392494089,1761564642389,-500.0,0.00036406,2]
[392494090,1761564642398,-250.0,0.00036406,2]
[392494091,1761564642406,-500.0,0.00036406,2]
[392494092,1761564642416,-250.0,0.00036406,2]
[392494093,1761564642426,-500.0,0.00036406,2]
[392494094,1761564642435,-250.0,0.00036406,2]
[392494095,1761564642444,-500.0,0.00036406,2]
[392494096,1761564642454,-250.0,0.00036406,2]
[392494097,1761564642463,-250.0,0.00036406,2]
[392494098,1761564642472,-500.0,0.00036406,2]
[392494099,1761564642482,-250.0,0.00036406,2]
[392494100,1761564642491,-250.0,0.00036406,2]
[392494101,1761564642500,-500.0,0.00036406,2]
[392494102,1761564642510,-250.0,0.00036406,2]
[392494103,1761564642521,-250.0,0.00036406,2]
[392494104,1761564642531,-500.0,0.00036406,2]
[392494105,1761564642540,-250.0,0.00036406,2]
[392494106,1761564642550,-250.0,0.00036406,2]
[392494107,1761564642559,-500.0,0.00036406,2]
[392494108,1761564642571,-250.0,0.00036406,2]
[392494109,1761564642580,-250.0,0.00036406,2]
[392494110,1761564642589,-250.0,0.00036406,2]
[392494111,1761564642602,-500.0,0.00036406,2]
[392494112,1761564642611,-250.0,0.00036406,2]
[392494113,1761564642621,-578.20924308,0.00036406,2]
[392494114,1761564642630,-500.0,0.00036406,2]
[392494115,1761564642639,-250.0,0.00036406,2]
[392494116,1761564642648,-500.0,0.00036406,2]
[392494117,1761564642657,-250.0,0.00036406,2]
[392494118,1761564642667,-250.0,0.00036406,2]
[392494119,1761564642676,-250.0,0.00036406,2]
[392494120,1761564642685,-642.94,0.00036461,2]
[392494121,1761564642695,-659.46265031,0.00036516,2]
[392494122,1761564642704,-173.0,0.00036548,120]
[392494123,1761564642715,-902.8804813,0.00036597,2]
[392494124,1761564642725,-1300.0,0.000368,50]
[392494125,1761564642735,-500.0,0.00036819,2]
[392494126,1761564642746,-1115.33592914,0.00036821,5]
[392494127,1761564642756,-904.00526626,0.00036821,5]
[392494128,1761564642765,-1000.0,0.00036821,5]
[392494129,1761564642775,-1000.0,0.00036831,2]
[392494130,1761564642784,-969.71982128,0.00036881,9]
[392494131,1761564642794,-279.2671,0.000369,2]
[392494132,1761564642803,-902.88048131,0.00036933,2]
[392494133,1761564642812,-595.37131296,0.00036954,2]
[392494134,1761564642822,-478.5962,0.00036967,2]
[392494135,1761564642831,-500.0,0.00036973,5]
[392494136,1761564642841,-506.12573833,0.00036973,5]
[392494137,1761564642851,-2000.0,0.00036973,120]
[392494139,1761564642860,-2000.0,0.00036973,120]
[392494140,1761564642869,-2000.0,0.00036973,120]
[392494142,1761564642879,-2000.0,0.00036973,120]
[392494143,1761564642888,-2000.0,0.00036973,120]
[392494145,1761564642897,-2000.0,0.00036973,120]
[392494147,1761564642907,-2000.0,0.00036973,120]
[392494148,1761564642916,-2000.0,0.00036973,120]
[392494150,1761564642925,-2000.0,0.00036973,120]
[392494153,1761564642934,-2000.0,0.00036973,120]
[392494154,1761564642944,-2000.0,0.00036973,120]
[392494156,1761564642953,-2000.0,0.00036973,120]
[392494157,1761564642962,-2000.0,0.00036973,120]
[392494158,1761564642972,-2000.0,0.00036973,120]
[392494159,1761564642981,-2000.0,0.00036973,120]
[392494160,1761564642990,-2000.0,0.00036973,120]
[392494161,1761564642999,-2000.0,0.00036973,120]
[392494162,1761564643008,-2000.0,0.00036973,120]
[392494163,1761564643027,-2000.0,0.00036973,120]
[392494164,1761564643038,-2000.0,0.00036973,120]
[392494165,1761564643047,-640.694,0.00036973,120]
[392494166,1761564643057,-160.0,0.00036973,120]
[392494167,1761564643066,-191.99854695,0.00036973,120]
[392494168,1761564643076,-4340.155315,0.00036983,2]
[392494169,1761564643222,-2500.0,0.00036985,2]
[392494170,1761564643231,-11195.3503809,0.00036989,4]
[392494171,1761564643241,-33586.0511426,0.0003699,4]
[392494172,1761564643251,-4340.15531493,0.00036995,2]
[392494173,1761564643261,-430.15932396,0.00036996,7]
[392494174,1761564643273,-69549.8636364,0.00036999,2]
[392494175,1761564643282,-3731.78346029,0.00037,4]
[392494176,1761564643292,-12082.6902,0.00037,2]
[392494177,1761564643302,-23361.23565984,0.00037,30]
[392494178,1761564643312,-786.20937,0.00037,2]
[392494179,1761564643323,-158.1,0.00037006,2]
[392494180,1761564643334,-4340.15531493,0.00037008,2]
[392494181,1761564643344,-1294.45099257,0.00037009,4]
[392494182,1761564643355,-3731.78346029,0.00037014,4]
[392494183,1761564643365,-4340.15531493,0.0003702,2]
[392494184,1761564643375,-1425.0,0.00037022,2]
[392494185,1761564643384,-4340.15531493,0.00037033,2]
[392494186,1761564643395,-200.60989238,0.00037039,4]
[392494187,1761564643403,-3731.78346029,0.0003704,4]
[392494188,1761564643414,-4340.15531493,0.00037045,2]
[392494189,1761564643423,-1425.0,0.0003705,2]
[392494190,1761564643434,-500.0,0.00037056,2]
[392494191,1761564643444,-3731.78346029,0.00037057,4]
[392494192,1761564643454,-70903.8857455,0.00037057,4]
[392494193,1761564643463,-4340.15531493,0.00037058,2]
[392494194,1761564643473,-1425.0,0.00037059,2]
[392494195,1761564643485,-3731.78346029,0.00037063,4]
[392494196,1761564643496,-7463.56692058,0.00037065,4]
[392494197,1761564643506,-1865.08641946,0.00037067,2]
[392494198,1761564643517,-351.96917391,0.00037067,2]
[392494199,1761564643533,-837.40633027,0.00037068,11]
[392494200,1761564643542,-162.15708479,0.0003707,2]
[392494201,1761564643552,-4340.15531493,0.0003707,2]
[392494202,1761564643562,-3731.78346029,0.00037071,4]
[392494203,1761564643572,-314.4183,0.00037073,2]
[392494204,1761564643583,-501.66177155,0.00037073,5]
[392494205,1761564643593,-327.50826095,0.00037073,5]
[392494206,1761564643606,-502.10628795,0.00037073,5]
[392494207,1761564643616,-151.58346849,0.00037073,5]
[392494208,1761564643626,-500.69382819,0.00037073,5]
[392494209,1761564643636,-200.0,0.00037073,5]
[392494210,1761564643645,-575.04030745,0.00037073,5]
[392494211,1761564643656,-430.92464737,0.00037073,5]
[392494212,1761564643666,-500.0,0.00037073,5]
[392494213,1761564643675,-500.0,0.00037073,5]
[392494214,1761564643684,-500.0,0.00037073,5]
[392494215,1761564643694,-362.70540564,0.00037073,5]
[392494216,1761564643704,-500.0,0.00037073,5]
[392494217,1761564643713,-166.67,0.00037073,14]
[392494218,1761564643722,-3731.78346029,0.00037074,4]
[392494219,1761564643732,-1496.1743,0.00037075,2]
[392494220,1761564643741,-5000.0,0.00037075,2]
[392494221,1761564643750,-162.15708479,0.00037075,2]
[392494222,1761564643759,-162.26600295,0.00037078,10]
[392494223,1761564643769,-944.86533692,0.00037078,2]
[392494224,1761564643779,-1865.08641946,0.00037081,2]
[392494225,1761564643788,-944.86533688,0.00037081,2]
[392494226,1761564643800,-837.40633026,0.00037082,11]
[392494227,1761564643810,-4340.15531493,0.00037083,2]
[392494228,1761564643821,-1000.0,0.00037083,7]
[392494229,1761564643831,-944.86533688,0.00037084,2]
[392494230,1761564643840,-7463.56692058,0.00037085,4]
[392494231,1761564643851,-944.86533688,0.00037087,2]
[392494232,1761564643860,-944.86533688,0.00037089,2]
[392494233,1761564643869,-3731.78346029,0.0003709,4]
[392494234,1761564643882,-944.86533688,0.00037092,2]
[392494235,1761564643892,-2160.97773152,0.00037095,2]
[392494236,1761564643902,-1865.08641946,0.00037095,2]
[392494237,1761564643913,-727.07819169,0.00037095,2]
[392494238,1761564643923,-944.86533688,0.00037095,2]
[392494239,1761564643938,-4340.15531493,0.00037095,2]
[392494240,1761564643947,-837.40633026,0.00037095,11]
[392494241,1761564643958,-705.0180308,0.000371,30]
[392494242,1761564643967,-609.73746248,0.000371,3]
[392494243,1761564643976,-1103.35147338,0.000371,120]
[392494245,1761564643985,-2078.63928585,0.000371,7]
[392494246,1761564643995,-3731.78346029,0.000371,4]
[392494247,1761564644005,-1425.0,0.00037104,2]
[392494248,1761564644014,-2160.97773151,0.0003711,2]
[392494249,1761564644023,-2160.97773151,0.00037125,2]
[392494250,1761564644034,-3731.78346029,0.00037142,4]
[392494251,1761564644043,-1425.0,0.00037147,2]
[392494252,1761564644054,-500.0,0.00037152,2]
[392494253,1761564644065,-14927.1338412,0.00037154,4]
[392494254,1761564644074,-1425.0,0.00037158,2]
[392494255,1761564644084,-500.0,0.00037164,2]
[392494256,1761564644093,-500.0,0.00037164,2]
[392494257,1761564644103,-296964.995877,0.00037165,4]
[392494258,1761564644112,-13498.4089035,0.00037168,4]
[392494259,1761564644122,-40495.2267105,0.00037172,4]
[392494260,1761564644131,-602.95669406,0.00037173,5]
[392494261,1761564644141,-500.0,0.00037173,5]
[392494262,1761564644150,-500.0,0.00037173,5]
[392494263,1761564644160,-500.0,0.00037173,5]
[392494264,1761564644170,-500.0,0.00037173,5]
[392494265,1761564644179,-500.0,0.00037173,5]
[392494266,1761564644189,-500.0,0.00037173,5]
[392494267,1761564644199,-500.0,0.00037173,5]
[392494268,1761564644208,-500.0,0.00037173,5]
[392494269,1761564644217,-502.87918158,0.00037173,5]
[392494270,1761564644226,-500.0,0.00037173,5]
[392494271,1761564644236,-500.0,0.00037173,5]
[392494272,1761564644245,-200.0,0.00037173,5]
[392494273,1761564644254,-500.0,0.00037173,5]
[392494274,1761564644263,-13498.4089035,0.00037174,4]
[392494275,1761564644273,-53993.635614,0.00037175,4]
[392494276,1761564644283,-192.24588975,0.00037178,7]
[392494277,1761564644293,-178.3152953,0.00037178,7]
[392494278,1761564644302,-158.70334469,0.00037178,7]
[392494279,1761564644313,-170.60724563,0.00037178,7]
[392494280,1761564644323,-159.51751846,0.00037178,7]
[392494281,1761564644331,-165.1146694,0.00037178,7]
[392494282,1761564644341,-177.0,0.00037178,120]
[392494283,1761564644353,-1425.0,0.0003718,2]
[392494284,1761564644362,-1425.0,0.00037181,2]
[392494285,1761564644372,-53993.635614,0.00037182,4]
[392494286,1761564644382,-150.92,0.00037182,2]
[392494287,1761564644391,-500.0,0.00037184,2]
[392494288,1761564644400,-500.0,0.00037184,2]
[392494289,1761564644410,-608.57263053,0.00037184,2]
[392494290,1761564644419,-500.0,0.00037184,7]
[392494291,1761564644428,-500.0,0.00037184,7]
[392494292,1761564644438,-500.0,0.00037184,7]
[392494293,1761564644447,-508.88606453,0.00037184,28]
[392494294,1761564644456,-500.0,0.00037184,28]
[392494295,1761564644466,-500.0,0.00037184,28]
[392494296,1761564644476,-500.0,0.00037184,28]